fUSD/lending_fUSD_20241205
["ID","MTS","AMOUNT","RATE_DAILY","PERIOD"]
[344401499,1733415043361,-203.0,7.637e-05,2]
[344401500,1733415043371,-203.0,7.637e-05,2]
[344401501,1733415043383,-203.0,7.637e-05,2]
[344401502,1733415043394,-203.0,7.637e-05,2]
[344401503,1733415043404,-203.0,7.637e-05,2]
[344401504,1733415043415,-203.0,7.637e-05,2]
[344401505,1733415043426,-203.0,7.637e-05,2]
[344401506,1733415043436,-203.0,7.637e-05,2]
[344401507,1733415043447,-203.0,7.637e-05,2]
[344401508,1733415043457,-203.0,7.637e-05,2]
[344401509,1733415043467,-203.0,7.637e-05,2]
[344401510,1733415043477,-203.0,7.637e-05,2]
[344401511,1733415043488,-435.12,7.64e-05,2]
[344401512,1733415043501,-153.0,7.646e-05,2]
[344401513,1733415043512,-153.0,7.646e-05,2]
[344401514,1733415043522,-153.0,7.646e-05,2]
[344401515,1733415043539,-153.0,7.646e-05,2]
[344401516,1733415043550,-153.0,7.646e-05,2]
[344401517,1733415043560,-153.0,7.646e-05,2]
[344401518,1733415043570,-153.0,7.646e-05,2]
[344401519,1733415043581,-153.0,7.646e-05,2]
[344401520,1733415043591,-153.0,7.646e-05,2]
[344401521,1733415043601,-153.0,7.646e-05,2]
[344401522,1733415043611,-153.0,7.646e-05,2]
[344401523,1733415043622,-153.0,7.646e-05,2]
[344401524,1733415043632,-153.0,7.646e-05,2]
[344401525,1733415043642,-203.0,7.648e-05,2]
[344401526,1733415043652,-203.0,7.648e-05,2]
[344401527,1733415043662,-203.0,7.648e-05,2]
[344401528,1733415043673,-203.0,7.648e-05,2]
[344401529,1733415043683,-203.0,7.648e-05,2]
[344401530,1733415043693,-203.0,7.648e-05,2]
[344401531,1733415043704,-203.0,7.648e-05,2]
[344401532,1733415043714,-203.0,7.648e-05,2]
[344401533,1733415043724,-203.0,7.648e-05,2]
[344401534,1733415043734,-203.0,7.648e-05,2]
[344401535,1733415043744,-203.0,7.648e-05,2]
[344401536,1733415043755,-203.0,7.648e-05,2]
[344401537,1733415043765,-203.0,7.648e-05,2]
[344401538,1733415043776,-203.0,7.648e-05,2]
[344401539,1733415043787,-435.12,7.65e-05,2]
[344401540,1733415043797,-153.0,7.657e-05,2]
[344401541,1733415043807,-153.0,7.657e-05,2]
[344401542,1733415043818,-153.0,7.657e-05,2]
[344401543,1733415043830,-153.0,7.657e-05,2]
[344401544,1733415043840,-153.0,7.657e-05,2]
[344401545,1733415043851,-153.0,7.657e-05,2]
[344401546,1733415043861,-153.0,7.657e-05,2]
[344401547,1733415043871,-153.0,7.657e-05,2]
[344401548,1733415043882,-153.0,7.657e-05,2]
[344401549,1733415043892,-153.0,7.657e-05,2]
[344401550,1733415043902,-153.0,7.657e-05,2]
[344401551,1733415043912,-153.0,7.657e-05,2]
[344401552,1733415043922,-153.0,7.657e-05,2]
[344401553,1733415043932,-500.0,7.658e-05,2]
[344401554,1733415043942,-203.0,7.659e-05,2]
[344401555,1733415043952,-203.0,7.659e-05,2]
[344401556,1733415043962,-203.0,7.659e-05,2]
[344401557,1733415043973,-203.0,7.659e-05,2]
[344401558,1733415043983,-203.0,7.659e-05,2]
[344401559,1733415043993,-203.0,7.659e-05,2]
[344401560,1733415044003,-203.0,7.659e-05,2]
[344401561,1733415044013,-203.0,7.659e-05,2]
[344401562,1733415044023,-203.0,7.659e-05,2]
[344401563,1733415044034,-203.0,7.659e-05,2]
[344401564,1733415044044,-203.0,7.659e-05,2]
[344401565,1733415044054,-203.0,7.659e-05,2]
[344401566,1733415044064,-203.0,7.659e-05,2]
[344401567,1733415044074,-203.0,7.659e-05,2]
[344401568,1733415044084,-153.0,7.667e-05,2]
[344401569,1733415044094,-153.0,7.667e-05,2]
[344401570,1733415044106,-153.0,7.667e-05,2]
[344401571,1733415044116,-153.0,7.667e-05,2]
[344401572,1733415044126,-153.0,7.667e-05,2]
[344401573,1733415044136,-153.0,7.667e-05,2]
[344401574,1733415044146,-153.0,7.667e-05,2]
[344401575,1733415044157,-153.0,7.667e-05,2]
[344401576,1733415044167,-153.0,7.667e-05,2]
[344401577,1733415044176,-153.0,7.667e-05,2]
[344401578,1733415044186,-153.0,7.667e-05,2]
[344401579,1733415044196,-153.0,7.667e-05,2]
[344401580,1733415044206,-153.0,7.667e-05,2]
[344401581,1733415044216,-203.0,7.669e-05,2]
[344401582,1733415044226,-203.0,7.669e-05,2]
[344401583,1733415044235,-203.0,7.669e-05,2]
[344401584,1733415044245,-203.0,7.669e-05,2]
[344401585,1733415044255,-203.0,7.669e-05,2]
[344401586,1733415044265,-203.0,7.669e-05,2]
[344401587,1733415044274,-203.0,7.669e-05,2]
[344401588,1733415044286,-203.0,7.669e-05,2]
[344401589,1733415044296,-203.0,7.669e-05,2]
[344401590,1733415044307,-203.0,7.669e-05,2]
[344401591,1733415044316,-203.0,7.669e-05,2]
[344401592,1733415044327,-203.0,7.669e-05,2]
[344401593,1733415044337,-203.0,7.669e-05,2]
[344401594,1733415044351,-203.0,7.669e-05,2]
[344401595,1733415044361,-500.0,7.673e-05,2]
[344401596,1733415044371,-12210.16000338,7.677e-05,2]
[344401597,1733415044382,-1867.58584445,7.678e-05,2]
[344401598,1733415044392,-1050.5170375,7.678e-05,2]
[344401599,1733415044403,-646.5452288,7.678e-05,2]
[344401600,1733415044416,-484.9089216,7.678e-05,2]
[344401601,1733415044428,-153.0,7.678e-05,2]
[344401602,1733415044437,-153.0,7.678e-05,2]
[344401603,1733415044447,-153.0,7.678e-05,2]
[344401604,1733415044457,-153.0,7.678e-05,2]
[344401605,1733415044467,-153.0,7.678e-05,2]
[344401606,1733415044476,-153.0,7.678e-05,2]
[344401607,1733415044486,-153.0,7.678e-05,2]
[344401608,1733415044496,-153.0,7.678e-05,2]
[344401609,1733415044506,-153.0,7.678e-05,2]
[344401610,1733415044515,-153.0,7.678e-05,2]
[344401611,1733415044525,-153.0,7.678e-05,2]
[344401612,1733415044538,-153.0,7.678e-05,2]
[344401613,1733415044548,-153.0,7.678e-05,2]
[344401614,1733415044558,-590.91583359,7.678e-05,2]
[344401615,1733415044568,-43470.69909072,7.678e-05,2]
[344401616,1733415044578,-12210.16000338,7.678e-05,2]
[344401617,1733415044588,-12210.16000338,7.678e-05,2]
[344401618,1733415044598,-443.1868752,7.678e-05,2]
[344401619,1733415044607,-12210.16000338,7.678e-05,2]
[344401620,1733415044617,-787.88777813,7.679e-05,2]
[344401621,1733415044627,-590.91583359,7.679e-05,2]
[344401622,1733415044638,-200.0,7.679e-05,2]
[344401623,1733415044648,-57960.93212096,7.679e-05,2]
[344401624,1733415044658,-12210.16000338,7.679e-05,2]
[344401625,1733415044668,-200.0,7.679e-05,2]
[344401626,1733415044678,-1149.41374008,7.679e-05,2]
[344401627,1733415044688,-200.0,7.679e-05,2]
[344401628,1733415044697,-24452.26823853,7.679e-05,2]
[344401629,1733415044707,-9157.62000253,7.679e-05,2]
[344401630,1733415044717,-1173.82130164,7.679e-05,2]
[344401631,1733415044727,-646.5452288,7.679e-05,2]
[344401632,1733415044737,-646.5452288,7.679e-05,2]
[344401633,1733415044747,-484.9089216,7.68e-05,2]
[344401634,1733415044757,-203.0,7.68e-05,2]
[344401635,1733415044766,-203.0,7.68e-05,2]
[344401636,1733415044776,-203.0,7.68e-05,2]
[344401637,1733415044790,-203.0,7.68e-05,2]
[344401638,1733415044800,-203.0,7.68e-05,2]
[344401639,1733415044810,-203.0,7.68e-05,2]
[344401640,1733415044821,-203.0,7.68e-05,2]
[344401641,1733415044831,-203.0,7.68e-05,2]
[344401642,1733415044842,-203.0,7.68e-05,2]
[344401643,1733415044854,-203.0,7.68e-05,2]
[344401644,1733415044865,-203.0,7.68e-05,2]
[344401645,1733415044876,-16280.21333783,7.68e-05,2]
[344401646,1733415044886,-249.2926173,7.68e-05,2]
[344401647,1733415044897,-1565.09506886,7.68e-05,2]
[344401648,1733415044908,-1400.68938333,7.68e-05,2]
[344401649,1733415044918,-200.0,7.68e-05,2]
[344401650,1733415044928,-200.0,7.68e-05,2]
[344401651,1733415044938,-200.0,7.68e-05,2]
[344401652,1733415044948,-11931.39999808,7.68e-05,2]
[344401653,1733415044958,-484.9089216,7.68e-05,2]
[344401654,1733415044968,-57960.93212096,7.68e-05,2]
[344401655,1733415044978,-272.7612684,7.68e-05,2]
[344401656,1733415044988,-363.6816912,7.68e-05,2]
[344401657,1733415044998,-1867.58584445,7.681e-05,2]
[344401658,1733415045009,-1867.58584445,7.681e-05,2]
[344401659,1733415045019,-77281.24282794,7.681e-05,2]
[344401660,1733415045032,-16280.21333783,7.681e-05,2]
[344401661,1733415045045,-18339.20117889,7.681e-05,2]
[344401662,1733415045055,-6868.215002,7.681e-05,2]
[344401663,1733415045065,-272.7612684,7.681e-05,2]
[344401664,1733415045075,-77281.24282794,7.681e-05,2]
[344401665,1733415045085,-9157.62000253,7.682e-05,2]
[344401666,1733415045095,-332.3901564,7.682e-05,2]
[344401667,1733415045106,-24452.26823853,7.682e-05,2]
[344401668,1733415045116,-204.5709513,7.682e-05,2]
[344401669,1733415045126,-200.0,7.682e-05,2]
[344401670,1733415045136,-200.0,7.682e-05,2]
[344401671,1733415045145,-443.1868752,7.682e-05,2]
[344401672,1733415045156,-1050.5170375,7.683e-05,2]
[344401673,1733415045166,-200.0,7.683e-05,2]
[344401674,1733415045177,-18339.20117889,7.683e-05,2]
[344401675,1733415045187,-200.0,7.683e-05,2]
[344401676,1733415045197,-24452.26823853,7.683e-05,2]
[344401677,1733415045208,-9157.62000253,7.683e-05,2]
[344401678,1733415045218,-1149.41374008,7.683e-05,2]
[344401679,1733415045228,-1532.55165344,7.683e-05,2]
[344401680,1733415045238,-363.6816912,7.683e-05,2]
[344401681,1733415045248,-1400.68938333,7.683e-05,2]
[344401682,1733415045257,-200.0,7.683e-05,2]
[344401683,1733415045267,-1867.58584445,7.683e-05,2]
[344401684,1733415045277,-2086.79342515,7.683e-05,2]
[344401685,1733415045291,-200.0,7.683e-05,2]
[344401686,1733415045301,-200.0,7.683e-05,2]
[344401688,1733415045311,-1173.82130164,7.683e-05,2]
[344401693,1733415045853,-24452.26823853,7.684e-05,2]
[344401694,1733415045885,-18339.20117889,7.684e-05,2]
[344401695,1733415045905,-363.6816912,7.684e-05,2]
[344401696,1733415045919,-1173.82130164,7.684e-05,2]
[344401697,1733415045928,-332.3901564,7.684e-05,2]
[344401698,1733415045938,-1400.68938333,7.684e-05,2]
[344401699,1733415045948,-1050.5170375,7.684e-05,2]
[344401700,1733415045958,-200.0,7.684e-05,2]
[344401701,1733415045967,-200.0,7.685e-05,2]
[344401702,1733415045977,-484.9089216,7.685e-05,2]
[344401703,1733415045987,-57960.93212096,7.685e-05,2]
[344401704,1733415045996,-1565.09506886,7.685e-05,2]
[344401705,1733415046006,-6868.215002,7.685e-05,2]
[344401706,1733415046015,-18339.20117889,7.685e-05,2]
[344401707,1733415046025,-1149.41374008,7.685e-05,2]
[344401708,1733415046039,-332.3901564,7.685e-05,2]
[344401709,1733415046049,-200.0,7.685e-05,2]
[344401710,1733415046058,-787.88777813,7.685e-05,2]
[344401711,1733415046068,-200.0,7.685e-05,2]
[344401712,1733415046078,-1565.09506886,7.685e-05,2]
[344401713,1733415046087,-590.91583359,7.685e-05,2]
[344401714,1733415046096,-787.88777813,7.685e-05,2]
[344401715,1733415046106,-1173.82130164,7.685e-05,2]
[344401716,1733415046116,-204.5709513,7.685e-05,2]
[344401717,1733415046125,-1400.68938333,7.686e-05,2]
[344401718,1733415046135,-200.0,7.686e-05,2]
[344401719,1733415046145,-1050.5170375,7.686e-05,2]
[344401720,1733415046155,-332.3901564,7.686e-05,2]
[344401721,1733415046168,-200.0,7.686e-05,2]
[344401722,1733415046177,-200.0,7.687e-05,2]
[344401723,1733415046187,-6868.215002,7.687e-05,2]
[344401724,1733415046197,-204.5709513,7.687e-05,2]
[344401725,1733415046206,-484.9089216,7.687e-05,2]
[344401726,1733415046216,-200.0,7.687e-05,2]
[344401727,1733415046225,-6868.215002,7.687e-05,2]
[344401728,1733415046235,-1149.41374008,7.687e-05,2]
[344401729,1733415046244,-862.06030506,7.687e-05,2]
[344401730,1733415046254,-43470.69909072,7.688e-05,2]
[344401731,1733415046263,-2086.79342515,7.688e-05,2]
[344401732,1733415046273,-7619.07285522,7.688e-05,2]
[344401734,1733415046658,-5400.68482761,7.688e-05,2]
[344401735,1733415046673,-44941.17443813,7.688e-05,2]
[344401736,1733415046683,-200.0,7.688e-05,2]
[344401737,1733415046692,-55417.72296547,7.688e-05,2]
[344401738,1733415046712,-620.58,7.499e-05,2]
[344401739,1733415046722,-2394.73999989,7.688e-05,2]
[344401740,1733415046734,-148.4691556,7.688e-05,2]
[344401741,1733415046743,-590.91583359,7.688e-05,2]
[344401742,1733415046753,-443.1868752,7.689e-05,2]
[344401743,1733415046763,-200.0,7.689e-05,2]
[344401744,1733415046773,-200.0,7.689e-05,2]
[344401745,1733415046784,-1408.68407623,7.689e-05,2]
[344401746,1733415046796,-156.41099263,7.689e-05,2]
[344401747,1733415046806,-787.88777813,7.689e-05,2]
[344401748,1733415046815,-1173.82130164,7.69e-05,2]
[344401749,1733415046826,-1867.58584445,7.69e-05,2]
[344401750,1733415046840,-249.2926173,7.69e-05,2]
[344401751,1733415046850,-200.0,7.69e-05,2]
[344401752,1733415046860,-272.7612684,7.69e-05,2]
[344401753,1733415046872,-363.6816912,7.69e-05,2]
[344401754,1733415046881,-1443.6748504,7.69e-05,2]
[344401755,1733415046892,-5002.13999976,7.69e-05,2]
[344401756,1733415046903,-7896.06210728,7.69e-05,2]
[344401757,1733415046916,-8837.46808979,7.69e-05,2]
[344401758,1733415046938,-391.635,7.499e-05,2]
[344401759,1733415046950,-511.195,7.499e-05,2]
[344401760,1733415046959,-598.4466989,7.69e-05,2]
[344401761,1733415046971,-259.45179862,7.69e-05,2]
[344401762,1733415046982,-8565.78077329,7.69e-05,2]
[344401763,1733415046991,-249.2926173,7.69e-05,2]
[344401764,1733415047001,-8500.0,7.69e-05,2]
[344401765,1733415047010,-2362.47046432,7.69e-05,2]
[344401766,1733415047026,-3299.44403703,7.69e-05,2]
[344401767,1733415047041,-3495.70550118,7.69e-05,2]
[344401768,1733415047051,-484.9089216,7.691e-05,2]
[344401769,1733415047062,-2086.79342515,7.691e-05,2]
[344401770,1733415047071,-862.06030506,7.691e-05,2]
[344401771,1733415047080,-1532.55165344,7.691e-05,2]
[344401772,1733415047090,-1548.11503196,7.691e-05,2]
[344401773,1733415047102,-10156.0,7.691e-05,2]
[344401774,1733415047114,-446.88493661,7.691e-05,2]
[344401775,1733415047614,-306.83499982,7.499e-05,2]
[344401776,1733415047627,-595.99500018,7.499e-05,2]
[344401777,1733415047637,-902.83,7.499e-05,2]
[344401778,1733415047648,-435.12,7.63e-05,2]
[344401779,1733415047657,-5458.28249982,7.691e-05,2]
[344401780,1733415047669,-729.9187105,7.691e-05,2]
[344401781,1733415047678,-200.0,7.691e-05,2]
[344401782,1733415047688,-249.2926173,7.691e-05,2]
[344401783,1733415047698,-5120.7886722,7.691e-05,2]
[344401784,1733415047727,-500.0,7.691e-05,2]
[344401785,1733415047746,-37849.91041852,7.691e-05,2]
[344401786,1733415047755,-200.0,7.691e-05,2]
[344401787,1733415047765,-332.3901564,7.692e-05,2]
[344401788,1733415047775,-200.0,7.692e-05,2]
[344401789,1733415047786,-204.5709513,7.692e-05,2]
[344401790,1733415047796,-16280.21333783,7.692e-05,2]
[344401791,1733415047805,-200.0,7.692e-05,2]
[344401792,1733415047815,-590.91583359,7.692e-05,2]
[344401793,1733415047825,-443.1868752,7.692e-05,2]
[344401794,1733415047835,-43470.69909072,7.692e-05,2]
[344401795,1733415047845,-787.88777813,7.693e-05,2]
[344401796,1733415047855,-32603.02431804,7.693e-05,2]
[344401797,1733415047864,-1400.68938333,7.693e-05,2]
[344401798,1733415047874,-862.06030506,7.693e-05,2]
[344401799,1733415047883,-6868.215002,7.693e-05,2]
[344401800,1733415047893,-443.1868752,7.693e-05,2]
[344401801,1733415047902,-272.7612684,7.693e-05,2]
[344401802,1733415047912,-1532.55165344,7.694e-05,2]
[344401803,1733415047922,-1173.82130164,7.694e-05,2]
[344401804,1733415047982,-1532.55165344,7.694e-05,2]
[344401805,1733415047992,-9157.62000253,7.694e-05,2]
[344401806,1733415048002,-646.5452288,7.694e-05,2]
[344401807,1733415048012,-443.1868752,7.694e-05,2]
[344401808,1733415048022,-249.2926173,7.694e-05,2]
[344401809,1733415048034,-16280.21333783,7.694e-05,2]
[344401810,1733415048044,-646.5452288,7.694e-05,2]
[344401811,1733415048055,-590.91583359,7.694e-05,2]
[344401812,1733415048065,-332.3901564,7.694e-05,2]
[344401813,1733415048075,-862.06030506,7.695e-05,2]
[344401814,1733415048085,-32603.02431804,7.695e-05,2]
[344401815,1733415048095,-77281.24282794,7.695e-05,2]
[344401816,1733415048104,-1532.55165344,7.695e-05,2]
[344401817,1733415048114,-862.06030506,7.695e-05,2]
[344401818,1733415048124,-16061.57689307,7.695e-05,2]
[344401819,1733415048142,-5218.89042525,7.695e-05,2]
[344401820,1733415048167,-11322.55699972,7.695e-05,2]
[344401821,1733415048177,-24452.26823853,7.695e-05,2]
[344401822,1733415048186,-200.0,7.695e-05,2]
[344401823,1733415048195,-1400.68938333,7.695e-05,2]
[344401824,1733415048204,-200.0,7.695e-05,2]
[344401825,1733415048214,-9157.62000253,7.695e-05,2]
[344401826,1733415048224,-6868.215002,7.695e-05,2]
[344401827,1733415048234,-1050.5170375,7.696e-05,2]
[344401828,1733415048244,-204.5709513,7.696e-05,2]
[344401829,1733415048253,-77281.24282794,7.696e-05,2]
[344401830,1733415048262,-1149.41374008,7.696e-05,2]
[344401831,1733415048271,-200.0,7.696e-05,2]
[344401832,1733415048281,-200.0,7.696e-05,2]
[344401833,1733415048292,-363.6816912,7.696e-05,2]
[344401834,1733415048305,-1867.58584445,7.696e-05,2]
[344401835,1733415048314,-200.0,7.696e-05,2]
[344401836,1733415048323,-16280.21333783,7.697e-05,2]
[344401837,1733415048332,-2086.79342515,7.697e-05,2]
[344401838,1733415048345,-1565.09506886,7.697e-05,2]
[344401839,1733415048357,-1565.09506886,7.697e-05,2]
[344401840,1733415048367,-631.0,7.697e-05,2]
[344401841,1733415048376,-862.06030506,7.697e-05,2]
[344401842,1733415048387,-43367.79894719,7.697e-05,2]
[344401843,1733415048399,-102.90014353,7.697e-05,2]
[344401844,1733415048408,-272.7612684,7.697e-05,2]
[344401845,1733415048417,-1086.15880383,7.697e-05,2]
[344401846,1733415048426,-500.0,7.697e-05,2]
[344401847,1733415048435,-369.58732272,7.697e-05,2]
[344401848,1733415048444,-500.0,7.697e-05,2]
[344401849,1733415048454,-500.0,7.697e-05,2]
[344401850,1733415048463,-500.0,7.697e-05,2]
[344401851,1733415048472,-500.0,7.697e-05,2]
[344401852,1733415048481,-383.73181241,7.697e-05,2]
[344401853,1733415048490,-652.8,7.697e-05,2]
[344401854,1733415048499,-652.8,7.697e-05,2]
[344401855,1733415048508,-500.0,7.697e-05,2]
[344401856,1733415048518,-500.0,7.697e-05,2]
[344401857,1733415048526,-969.12,7.697e-05,2]
[344401858,1733415048537,-969.12,7.697e-05,2]
[344401859,1733415048546,-969.12,7.697e-05,2]
[344401860,1733415048555,-500.0,7.697e-05,2]
[344401861,1733415048564,-500.0,7.697e-05,2]
[344401862,1733415048574,-620.58,7.697e-05,2]
[344401863,1733415048583,-620.58,7.697e-05,2]
[344401864,1733415048592,-620.58,7.697e-05,2]
[344401865,1733415048602,-902.83,7.697e-05,2]
[344401866,1733415048611,-902.83,7.697e-05,2]
[344401867,1733415048621,-902.83,7.697e-05,2]
[344401868,1733415048630,-16280.21333783,7.697e-05,2]
[344401869,1733415048639,-77281.24282794,7.697e-05,2]
[344401870,1733415048649,-24452.26823853,7.697e-05,2]
[344401871,1733415048658,-200.0,7.697e-05,2]
[344401872,1733415048668,-32603.02431804,7.697e-05,2]
[344401873,1733415048677,-787.88777813,7.697e-05,2]
[344401874,1733415048686,-43470.69909072,7.697e-05,2]
[344401875,1733415048695,-249.2926173,7.698e-05,2]
[344401876,1733415048705,-200.0,7.698e-05,2]
[344401877,1733415048718,-200.0,7.698e-05,2]
[344401878,1733415048727,-1149.41374008,7.698e-05,2]
[344401879,1733415048736,-2086.79342515,7.698e-05,2]
[344401880,1733415048746,-150763.38642259,7.698e-05,2]
[344401881,1733415048757,-1811.7475071,7.698e-05,2]
[344401882,1733415048768,-25497.87667542,7.698e-05,2]
[344401883,1733415048797,-9468.00000001,7.698e-05,2]
[344401884,1733415048808,-105340.47612686,7.698e-05,2]
[344401885,1733415048829,-11697.3,7.698e-05,2]
[344401886,1733415075812,1485.54,6.736e-05,2]
[344401887,1733415101871,1705.36,6.878e-05,2]
[344401888,1733415152033,158.06589126,7.32e-05,10]
[344401889,1733415166766,863.21,6.49e-05,2]
[344401890,1733415272737,169.81,7.013e-05,2]
[344401891,1733415289570,247.34,6.465e-05,2]
[344401892,1733415310936,2000.0,6.736e-05,2]
[344401893,1733415370138,250.0,6.465e-05,2]
[344401894,1733415376401,166.84,6.659e-05,2]
[344401895,1733415376813,166.84,7.026e-05,2]
[344401897,1733415559559,302.23,6.464e-05,2]
[344401901,1733415615671,250.0,6.514e-05,2]
[344401902,1733415645189,23900.0,6.514e-05,2]
[344401903,1733415700913,549.76,6.464e-05,2]
[344401904,1733415869253,352.21,6.492e-05,2]
[344401905,1733415960816,2000.0,6.461e-05,2]
[344401907,1733415972669,3226.84,6.461e-05,2]
[344401909,1733416027297,166.7,6.686e-05,2]
[344401910,1733416064253,250.0,6.461e-05,2]
[344401915,1733416127359,168722.25,7e-05,2]
[344401916,1733416127387,1994420.95,7e-05,2]
[344401917,1733416127417,73497.18,7e-05,2]
[344401918,1733416127443,1566000.0,7e-05,2]
[344401919,1733416127472,2000000.0,7e-05,2]
[344401920,1733416127501,19340735.64492215,7e-05,2]
[344401921,1733416127530,2000000.0,7e-05,2]
[344401922,1733416127559,371000.0,7e-05,2]
[344401923,1733416131212,405.29,6.454e-05,2]
[344401924,1733416140497,194.71,6.657e-05,2]
[344401925,1733416140521,9078.29,6.657e-05,2]
[344401936,1733416176233,364.08,6.455e-05,2]
[344401940,1733416208205,200.0,6.481e-05,2]
[344401941,1733416220744,250.0,6.481e-05,2]
[344401942,1733416228912,10000.0,0.00015,30]
[344401950,1733416234423,-150.0,6.999e-05,2]
[344401951,1733416234433,-3313.66680285,7e-05,2]
[344401952,1733416234445,-29839.4185261,7e-05,2]
[344401953,1733416234457,-6599.5,7e-05,2]
[344401954,1733416234532,-1811.16258926,7e-05,2]
[344401955,1733416234592,-3836.2884,7e-05,2]
[344401956,1733416234604,-207077.06381437,7e-05,2]
[344401957,1733416234615,-128019.520626,7e-05,2]
[344401958,1733416234650,-5625.02666559,7e-05,2]
[344401959,1733416234662,-783.43664745,7e-05,2]
[344401960,1733416237649,-1971.58,7e-05,2]
[344401961,1733416237710,-157506.53234494,7e-05,2]
[344401962,1733416237722,-1771.28400005,7e-05,2]
[344401963,1733416237736,-63126.1853,7e-05,2]
[344401964,1733416237779,-50750.0,7e-05,2]
[344401965,1733416237840,-2198.98756785,7e-05,2]
[344401966,1733416237851,-5095.15245915,7e-05,2]
[344401967,1733416237873,-633.004498,7e-05,2]
[344401968,1733416237961,-5031.36713102,7e-05,2]
[344402009,1733416239698,-536.64307117,7e-05,2]
[344402010,1733416239710,-391.0515,7e-05,2]
[344402011,1733416239754,-1325.22362594,7e-05,2]
[344402012,1733416239922,-18714.5548279,7e-05,2]
[344402014,1733416240051,-2.2829767,7e-05,2]
[344402017,1733416240533,23900.0,6.452e-05,2]
[344402031,1733416242726,-8008.44818729,7e-05,2]
[344402032,1733416242743,-7183.86531383,7e-05,2]
[344402034,1733416242927,-5077.568,7e-05,2]
[344402035,1733416242938,-6726.49871109,7e-05,2]
[344402036,1733416242950,-2772.32630457,7e-05,2]
[344402037,1733416242963,-6803.48855838,7e-05,2]
[344402038,1733416243100,-11831.35512312,7e-05,2]
[344402039,1733416243112,-360.20251,7e-05,2]
[344402040,1733416243158,-949193.28189375,7e-05,2]
[344402053,1733416245636,-11235.67358447,6.9e-05,2]
[344402055,1733416245646,-55071.39062844,7e-05,2]
[344402056,1733416245692,-313.07000027,7e-05,2]
[344402057,1733416245753,-3898.30000001,7e-05,2]
[344402058,1733416245765,-2425.400004,7e-05,2]
[344402059,1733416245777,-1452.7,7e-05,2]
[344402060,1733416245789,-595.46298338,7e-05,2]
[344402061,1733416245800,-488.44964267,7e-05,2]
[344402062,1733416245811,-1039.449305,7e-05,2]
[344402063,1733416245822,-44763.19488933,7e-05,2]
[344402064,1733416245865,-10218.45610719,7e-05,2]
[344402065,1733416245924,-1169.17053167,7e-05,2]
[344402068,1733416250957,900.0,6.2e-05,2]
[344402069,1733416253077,1900.0,6.3e-05,2]
[344402070,1733416255277,2900.0,6.4e-05,2]
[344402071,1733416256495,40000.0,0.00015,30]
[344402072,1733416257396,3900.0,6.5e-05,2]
[344402073,1733416259509,4800.0,6.6e-05,2]
[344402074,1733416261622,900.0,6.7e-05,2]
[344402075,1733416281165,4707.74,6.448e-05,2]
[344402076,1733416294145,732.3,6.446e-05,2]
[344402077,1733416355714,500.0,6.436e-05,2]
[344402078,1733416374575,301.83,6.575e-05,3]
[344402079,1733416390301,166.77,6.46e-05,2]
[344402080,1733416396248,157.97,5.168e-05,2]
[344402081,1733416396478,157.97,6.03e-05,2]
[344402082,1733416431697,2223.93,6.43e-05,2]
[344402083,1733416441519,41959.12,6.59e-05,2]
[344402086,1733417006778,157.97,4.047e-05,2]
[344402088,1733417283041,2000.0,4.788e-05,2]
[344402090,1733417376813,973.67,4.787e-05,2]
[344402091,1733417394905,150.0,4.993e-05,2]
[344402094,1733417426771,694.05,4.854e-05,2]
[344402108,1733417434718,-383.02,5.042e-05,2]
[344402109,1733417434728,-697.8,5.057e-05,2]
[344402110,1733417434737,-500.0,5.059e-05,2]
[344402111,1733417434747,-2981.3,5.063e-05,2]
[344402112,1733417434756,-166.77,5.07e-05,2]
[344402113,1733417434765,-10.582496,5.12e-05,2]
[344402114,1733417434776,-989.417504,5.12e-05,2]
[344402115,1733417434785,-1939.5671412,5.12e-05,2]
[344402116,1733417434795,-150.0,5.12e-05,2]
[344402117,1733417434805,-684.46,5.12e-05,2]
[344402118,1733417434814,-2656.91476247,5.121e-05,2]
[344402119,1733417434823,-61822.28,5.121e-05,2]
[344402120,1733417434833,-150.0,5.425e-05,2]
[344402121,1733417434841,-11164.25443476,5.425e-05,2]
[344402122,1733417434863,-548.10313852,5.425e-05,2]
[344402123,1733417434995,-2928.2257748,5.425e-05,2]
[344402124,1733417435052,-1207.44003,5.425e-05,2]
[344402125,1733417435109,-8051.97662192,5.425e-05,2]